bitfinex-derivatives/quotes_BTCF0:USTF0_20260118
["timestamp","ask_amount","ask_price","bid_price","bid_amount"]
[1768699430388,0.10966156,95104.0,95091.0,0.09149052]
[1768699430595,0.01494156,95104.0,95091.0,0.09149052]
[1768699431098,0.00231326,95104.0,95091.0,0.09149052]
[1768699433095,0.00231326,95104.0,95091.0,0.10075192]
[1768699435698,0.00231315,95109.0,95092.0,0.10823082]
[1768699435699,0.09472,95108.0,95092.0,0.10823082]
[1768699435901,0.10692263,95108.0,95092.0,0.10823082]
[1768699436608,0.10692263,95108.0,95094.0,0.0092614]
[1768699440402,0.10692263,95108.0,95093.0,0.09896942]
[1768699441704,0.010518,95107.0,95093.0,0.09896942]
[1768699443607,0.10692263,95108.0,95095.0,0.0092614]
[1768699443795,0.10692263,95108.0,95096.0,0.0092614]
[1768699444503,0.10692263,95108.0,95095.0,0.09896942]
[1768699449214,0.10692263,95108.0,95092.0,0.03768365]
[1768699452713,0.10692263,95108.0,95092.0,0.02842225]
[1768699453109,0.10692263,95108.0,95090.0,0.20950776]
[1768699454215,0.10692263,95108.0,95090.0,0.21876916]
[1768699454425,0.01220263,95108.0,95090.0,0.21876916]
[1768699454620,0.00231315,95109.0,95090.0,0.21876916]
[1768699455518,0.01283015,95109.0,95090.0,0.21876916]
[1768699455817,0.02506625,95109.0,95090.0,0.21876916]
[1768699456418,0.01454925,95109.0,95091.0,0.10823082]
[1768699456607,0.01454925,95109.0,95090.0,0.11053834]
[1768699456608,0.01454925,95109.0,95093.0,0.10823082]
[1768699459221,0.00231315,95109.0,95094.0,0.0092614]
[1768699460419,0.00231315,95109.0,95094.0,0.10823082]
[1768699460921,0.00231315,95109.0,95095.0,0.0092614]
[1768699468324,0.00231315,95109.0,95095.0,0.03768365]
[1768699469412,0.00231315,95109.0,95095.0,0.02842225]
[1768699471621,0.00231315,95109.0,95095.0,0.13362915]
[1768699472130,0.00231315,95109.0,95096.0,0.02842225]
[1768699472616,0.00231315,95109.0,95095.0,0.1052069]
[1768699472617,0.00231315,95109.0,95095.0,0.13362915]
[1768699473013,0.00231315,95109.0,95095.0,0.1052069]
[1768699473231,0.00231315,95109.0,95095.0,0.13362915]
[1768699473729,0.00231315,95109.0,95095.0,0.1052069]
[1768699476336,0.00231315,95109.0,95094.0,0.02842225]
[1768699476526,0.00231315,95109.0,95093.0,0.02842225]
[1768699477221,0.01213482,95109.0,95093.0,0.02842225]
[1768699477433,0.01213482,95109.0,95080.0,0.03790901]
[1768699477434,0.02034067,95093.0,95080.0,0.03790901]
[1768699477636,0.02034067,95093.0,95073.0,0.10158534]
[1768699477818,0.00982167,95093.0,95074.0,0.10423113]
[1768699478025,0.00982167,95093.0,95074.0,0.19630534]
[1768699478331,0.010519,95093.0,95075.0,0.10158534]
[1768699478530,0.11053834,95094.0,95075.0,0.10158534]
[1768699478722,0.11120065,95096.0,95076.0,0.00951113]
[1768699479325,0.010519,95093.0,95076.0,0.00951113]
[1768699480132,0.01052,95091.0,95075.0,0.09207421]
[1768699480342,0.02034167,95089.0,95072.0,0.09472]
[1768699480834,0.00982167,95089.0,95072.0,0.09472]
[1768699481024,0.01052,95090.0,95072.0,0.09472]
[1768699481625,0.01052,95090.0,95072.0,0.10423113]
[1768699481933,0.01052,95090.0,95072.0,0.19630534]
[1768699482137,0.09085998,95092.0,95072.0,0.19630534]
[1768699482839,0.01052,95090.0,95072.0,0.19630534]
[1768699484633,0.01052,95090.0,95073.0,0.00951113]
[1768699485525,0.00982167,95093.0,95073.0,0.10158534]
[1768699485727,0.00982167,95093.0,95074.0,0.10158534]
[1768699486329,0.010519,95094.0,95075.0,0.00951113]
[1768699490239,0.010519,95094.0,95076.0,0.00951113]
[1768699490538,0.010519,95092.0,95076.0,0.00951113]
[1768699491944,0.01052,95090.0,95076.0,0.00951113]
[1768699495844,0.01052,95090.0,95075.0,0.09207421]
[1768699499343,0.010519,95094.0,95075.0,0.09207421]
[1768699499534,0.010519,95094.0,95075.0,0.10186995]
[1768699500641,0.09472,95095.0,95079.0,0.09679239]
[1768699500940,0.09472,95099.0,95088.0,0.10658813]
[1768699501444,0.09472,95099.0,95088.0,0.00979574]
[1768699501642,0.09472,95099.0,95083.0,0.00979574]
[1768699502147,0.09472,95099.0,95084.0,0.00979574]
[1768699505241,0.105239,95099.0,95084.0,0.00979574]
[1768699505649,0.105239,95099.0,95083.0,0.09679239]
[1768699509645,0.09472,95099.0,95083.0,0.09679239]
[1768699509851,0.09472,95099.0,95083.0,0.10658813]
[1768699510050,0.09472,95099.0,95083.0,0.00979574]
[1768699510850,0.09472,95099.0,95083.0,0.0030366]
[1768699512953,0.09472,95099.0,95079.0,0.00979574]
[1768699513151,0.09472,95099.0,95081.0,0.03790901]
[1768699513453,0.010519,95098.0,95081.0,0.03790901]
[1768699513753,0.09472,95099.0,95081.0,0.03790901]
[1768699513754,0.010519,95095.0,95081.0,0.03790901]
[1768699513945,0.010519,95093.0,95081.0,0.03790901]
[1768699514652,0.00907389,95095.0,95081.0,0.03790901]
[1768699514950,0.010519,95092.0,95075.0,0.00979574]
[1768699518456,0.11527132,95095.0,95075.0,0.00979574]
[1768699519049,0.09567843,95095.0,95076.0,0.00979574]
[1768699519252,0.10379389,95099.0,95077.0,0.00979574]
[1768699519854,0.19947232,95099.0,95077.0,0.00979574]
[1768699520156,0.00907389,95098.0,95077.0,0.00979574]
[1768699522359,0.20091743,95099.0,95080.0,0.00925697]
[1768699522553,0.09472,95099.0,95082.0,0.00925697]
[1768699523862,0.09472,95099.0,95081.0,0.09982192]
[1768699524063,0.105239,95099.0,95081.0,0.09982192]
[1768699524464,0.105239,95099.0,95079.0,0.00925697]
[1768699524857,0.11477902,95099.0,95079.0,0.00925697]
[1768699525758,0.00954002,95094.0,95077.0,0.03790901]
[1768699525965,0.00954002,95092.0,95077.0,0.03790901]
[1768699526566,0.09391462,95093.0,95077.0,0.03790901]
[1768699529967,0.10345464,95090.0,95077.0,0.03790901]
[1768699530169,0.00954002,95089.0,95077.0,0.03790901]
[1768699530772,0.09391462,95090.0,95077.0,0.03790901]
[1768699530974,0.09391462,95090.0,95075.0,0.13262901]
[1768699533070,0.09391462,95090.0,95075.0,0.09472]
[1768699534571,0.02005902,95093.0,95075.0,0.09472]
[1768699535578,0.00954002,95093.0,95075.0,0.09472]
[1768699535776,0.00954002,95093.0,95076.0,0.010521]
[1768699536376,0.09717151,95096.0,95076.0,0.01982506]
[1768699536674,0.10666183,95096.0,95076.0,0.01982506]
[1768699537265,0.10666183,95096.0,95079.0,0.02842167]
[1768699538675,0.00949032,95095.0,95079.0,0.02842167]
[1768699539881,0.00949032,95095.0,95076.0,0.01982506]
[1768699541372,0.00949032,95095.0,95080.0,0.11055821]
[1768699545497,0.09717151,95096.0,95080.0,0.11055821]
[1768699545993,0.10666183,95096.0,95080.0,0.11055821]
[1768699546292,0.11718083,95096.0,95080.0,0.11055821]
[1768699546494,0.10666183,95096.0,95080.0,0.11055821]
[1768699546887,0.10666183,95096.0,95080.0,0.08660351]
[1768699549195,0.10666183,95096.0,95080.0,0.11055821]
[1768699549697,0.00949032,95095.0,95080.0,0.11055821]
[1768699549994,0.00949032,95095.0,95076.0,0.00930406]
[1768699551100,0.00949032,95094.0,95075.0,0.09472]
[1768699553190,0.00949032,95094.0,95081.0,0.02842531]
[1768699556303,0.11322247,95094.0,95081.0,0.02842531]
[1768699556503,0.00904199,95093.0,95081.0,0.02842531]
[1768699557901,0.00904199,95093.0,95082.0,0.02842531]
[1768699558098,0.00904199,95089.0,95082.0,0.01842531]
[1768699558304,0.09321315,95088.0,95078.0,0.03790901]
[1768699558503,0.10225514,95088.0,95078.0,0.03790901]
[1768699559001,0.09321315,95088.0,95077.0,0.03790901]
[1768699559896,0.00904199,95092.0,95077.0,0.03790901]
[1768699560802,0.09321315,95094.0,95077.0,0.03790901]
[1768699561002,0.09321315,95094.0,95075.0,0.03790901]
[1768699561197,0.09321315,95094.0,95075.0,0.04699239]
[1768699561804,0.10225514,95094.0,95075.0,0.04699239]
[1768699562305,0.10225514,95094.0,95075.0,0.03790901]
[1768699562705,0.00904199,95092.0,95075.0,0.03790901]
[1768699563204,0.00904199,95092.0,95077.0,0.03790901]
[1768699563408,0.09321315,95093.0,95077.0,0.03790901]
[1768699563707,0.09321315,95093.0,95078.0,0.03790901]
[1768699568108,0.09321315,95093.0,95077.0,0.03790901]
[1768699570909,0.09321315,95093.0,95079.0,0.03790901]
[1768699571213,0.09321315,95093.0,95077.0,0.03790901]
[1768699572100,0.09321315,95093.0,95075.0,0.00908338]
[1768699572916,0.010519,95092.0,95075.0,0.00908338]
[1768699573115,0.11277414,95092.0,95072.0,0.13262394]
[1768699573319,0.11277414,95092.0,95073.0,0.03790394]
[1768699573511,0.010519,95094.0,95074.0,0.00908338]
[1768699574113,0.010519,95094.0,95075.0,0.00908338]
[1768699575209,0.10225514,95094.0,95075.0,0.00908338]
[1768699576012,0.09321315,95094.0,95073.0,0.03790394]
[1768699576211,0.00904199,95088.0,95072.0,0.13262394]
[1768699576708,0.09321315,95089.0,95072.0,0.13262394]
[1768699577308,0.20749414,95096.0,95073.0,0.00908338]
[1768699578015,0.10225514,95095.0,95073.0,0.00908338]
[1768699578814,0.09321315,95095.0,95076.0,0.00908338]
[1768699579015,0.105239,95096.0,95077.0,0.00908338]
[1768699579605,0.20749414,95096.0,95077.0,0.00908338]
[1768699579813,0.10225514,95095.0,95074.0,0.010521]
[1768699580214,0.010519,95094.0,95073.0,0.04698732]
[1768699580712,0.10225514,95095.0,95073.0,0.05750832]
[1768699580914,0.10225514,95095.0,95074.0,0.00908338]
[1768699581416,0.10225514,95094.0,95074.0,0.00908338]
[1768699582109,0.10225514,95094.0,95076.0,0.03790394]
[1768699582614,0.10225514,95094.0,95075.0,0.03790394]
[1768699585110,0.00992442,95093.0,95075.0,0.03790394]
[1768699585310,0.10407685,95093.0,95076.0,0.03790394]
[1768699586116,0.10407685,95093.0,95075.0,0.03790394]
[1768699588824,0.10407685,95092.0,95075.0,0.03790394]
[1768699590122,0.00992442,95091.0,95075.0,0.03790394]
[1768699590325,0.10407685,95090.0,95075.0,0.03790394]
[1768699591127,0.10407685,95090.0,95073.0,0.03790394]
[1768699592427,0.09415243,95090.0,95073.0,0.03790394]
[1768699593132,0.09415243,95090.0,95072.0,0.105241]
[1768699593318,0.09415243,95090.0,95072.0,0.11519855]
[1768699593830,0.00992442,95094.0,95073.0,0.00995755]
[1768699594127,0.010519,95091.0,95073.0,0.00995755]
[1768699594629,0.11442795,95091.0,95072.0,0.09472]
[1768699597531,0.10390895,95091.0,95072.0,0.09472]
[1768699598929,0.10390895,95090.0,95072.0,0.09472]
[1768699601935,0.10390895,95090.0,95072.0,0.105242]
[1768699602238,0.09432158,95090.0,95074.0,0.010521]
[1768699602437,0.00958737,95094.0,95074.0,0.01966679]
[1768699603135,0.11442795,95094.0,95075.0,0.03790394]
[1768699603440,0.10390895,95093.0,95075.0,0.03790394]
[1768699606943,0.10390895,95093.0,95077.0,0.03790394]
[1768699607140,0.10390895,95093.0,95076.0,0.03790394]
[1768699608354,0.10390895,95093.0,95074.0,0.00914579]
[1768699609349,0.10390895,95093.0,95074.0,0.04704875]
[1768699609554,0.10390895,95093.0,95075.0,0.03790296]
[1768699612359,0.10601111,95092.0,95075.0,0.03790296]
[1768699618362,0.10601111,95092.0,95077.0,0.03790296]
[1768699619062,0.10601111,95091.0,95077.0,0.03790296]
[1768699619256,0.00991304,95090.0,95077.0,0.03790296]
[1768699619963,0.09609807,95091.0,95077.0,0.03790296]
[1768699621158,0.09609807,95091.0,95075.0,0.04842396]
[1768699621462,0.09609807,95091.0,95076.0,0.03790296]
[1768699621858,0.010519,95094.0,95077.0,0.009062]
[1768699622063,0.010519,95097.0,95078.0,0.009062]
[1768699622264,0.010519,95097.0,95080.0,0.009062]
[1768699624165,0.09472,95098.0,95080.0,0.009062]
[1768699625167,0.09472,95098.0,95081.0,0.010521]
[1768699625668,0.20073111,95098.0,95081.0,0.010521]
[1768699626167,0.00991304,95097.0,95081.0,0.010521]
[1768699626368,0.10601111,95095.0,95075.0,0.03790296]
[1768699626569,0.00991304,95094.0,95075.0,0.03790296]
[1768699627269,0.00991304,95094.0,95076.0,0.010521]
[1768699631172,0.00991304,95094.0,95076.0,0.04842396]
[1768699631571,0.00991304,95094.0,95076.0,0.010521]
[1768699632066,0.00991304,95092.0,95075.0,0.03790296]
[1768699632266,0.00991304,95088.0,95075.0,0.03790296]
[1768699632570,0.10601111,95088.0,95075.0,0.03790296]
[1768699634975,0.10601111,95088.0,95073.0,0.13262296]
[1768699635275,0.10601111,95087.0,95073.0,0.13262296]
[1768699637474,0.10601111,95087.0,95074.0,0.03790296]
[1768699637776,0.10601111,95087.0,95073.0,0.13262296]
[1768699638078,0.10601111,95087.0,95074.0,0.03790296]
[1768699638262,0.10601111,95087.0,95073.0,0.14314396]
[1768699638467,0.10601111,95087.0,95074.0,0.03790296]
[1768699638667,0.09609807,95087.0,95074.0,0.03790296]
[1768699638973,0.09609807,95087.0,95075.0,0.010521]
[1768699641378,0.09609807,95087.0,95077.0,0.010521]
[1768699641976,0.09609807,95087.0,95074.0,0.03790296]
[1768699642773,0.09609807,95087.0,95075.0,0.010521]
[1768699643881,0.00991304,95090.0,95075.0,0.010521]
[1768699645670,0.09236543,95092.0,95073.0,0.09472]
[1768699645865,0.10171308,95092.0,95073.0,0.09472]
[1768699646379,0.10171308,95092.0,95075.0,0.010521]
[1768699647380,0.00934765,95091.0,95075.0,0.010521]
[1768699647674,0.10171308,95091.0,95075.0,0.010521]
[1768699648882,0.09236543,95091.0,95075.0,0.010521]
[1768699651581,0.10171308,95091.0,95075.0,0.010521]
[1768699653182,0.10171308,95091.0,95075.0,0.04842396]
[1768699653378,0.10171308,95091.0,95075.0,0.010521]
[1768699653584,0.10171308,95091.0,95077.0,0.010521]
[1768699653975,0.10171308,95091.0,95075.0,0.04842396]
[1768699655487,0.10171308,95091.0,95075.0,0.010521]
[1768699657188,0.00936097,95090.0,95075.0,0.010521]
[1768699660391,0.09236543,95091.0,95077.0,0.010521]
[1768699661394,0.09236543,95091.0,95080.0,0.11055619]
[1768699668799,0.1076797,95096.0,95080.0,0.11055619]
[1768699669001,0.00936097,95095.0,95080.0,0.11055619]
[1768699669300,0.00936097,95094.0,95080.0,0.11055619]
[1768699669501,0.1076797,95094.0,95080.0,0.11055619]
[1768699670500,0.1076797,95094.0,95079.0,0.010521]
[1768699670700,0.1076797,95094.0,95080.0,0.11055619]
[1768699674195,0.00962563,95092.0,95080.0,0.11055619]
[1768699676508,0.09155111,95093.0,95080.0,0.11055619]
[1768699678013,0.09155111,95093.0,95080.0,0.12107719]
[1768699678711,0.09155111,95093.0,95080.0,0.010521]
[1768699678912,0.09155111,95093.0,95080.0,0.12107719]
[1768699681209,0.10117674,95093.0,95080.0,0.11055619]
[1768699683419,0.10117674,95093.0,95080.0,0.08660166]
[1768699685513,0.09472,95099.0,95080.0,0.10637632]
[1768699685514,0.18627111,95099.0,95080.0,0.10637632]
[1768699685722,0.18627111,95099.0,95082.0,0.01052]
[1768699686217,0.09155111,95099.0,95082.0,0.01052]
[1768699687208,0.10117674,95099.0,95082.0,0.01052]
[1768699688219,0.10117674,95099.0,95080.0,0.08660166]
[1768699689122,0.00962563,95098.0,95080.0,0.08660166]
[1768699689822,0.10117674,95096.0,95080.0,0.08660166]
[1768699690020,0.10117674,95092.0,95080.0,0.11055619]
[1768699690323,0.10117674,95092.0,95075.0,0.09472]
[1768699693119,0.10117674,95092.0,95079.0,0.03790296]
[1768699695320,0.10117674,95092.0,95078.0,0.03790296]
[1768699697119,0.10117674,95092.0,95079.0,0.03790296]
[1768699698321,0.10117674,95092.0,95080.0,0.11055619]
[1768699700826,0.09155111,95092.0,95080.0,0.11055619]
[1768699701025,0.10207011,95099.0,95080.0,0.12107719]
[1768699701228,0.10207011,95099.0,95080.0,0.15898015]
[1768699701633,0.00962563,95098.0,95080.0,0.15898015]
[1768699701926,0.10408836,95098.0,95080.0,0.15898015]
[1768699703132,0.10408836,95098.0,95080.0,0.12107719]
[1768699703628,0.010519,95097.0,95080.0,0.11055619]
[1768699704431,0.010519,95097.0,95080.0,0.12107719]
[1768699708133,0.010519,95096.0,95080.0,0.11055619]
[1768699709338,0.10408836,95098.0,95080.0,0.11055619]
[1768699710547,0.10408836,95098.0,95080.0,0.12107719]
[1768699710943,0.10445029,95097.0,95080.0,0.12107719]
[1768699712148,0.10470756,95102.0,95084.0,0.01052]
[1768699712732,0.09472,95102.0,95090.0,0.11055619]
[1768699712936,0.09677599,95104.0,95090.0,0.11055619]
[1768699715250,0.00231326,95104.0,95090.0,0.11956916]
[1768699719942,0.00231326,95104.0,95091.0,0.010519]
[1768699720143,0.00231326,95104.0,95090.0,0.11956916]
[1768699721357,0.00231326,95104.0,95090.0,0.00901297]
[1768699723258,0.00231326,95104.0,95091.0,0.02842599]
[1768699724253,0.01283126,95104.0,95091.0,0.02842599]
[1768699724558,0.00231326,95104.0,95091.0,0.02842599]
[1768699726863,0.00231326,95104.0,95092.0,0.01953197]
[1768699727066,0.00231315,95109.0,95093.0,0.00901297]
[1768699727757,0.00231315,95109.0,95094.0,0.010519]
[1768699728157,0.00231315,95109.0,95095.0,0.00901297]
[1768699733559,0.00231315,95109.0,95095.0,0.00233079]
[1768699736470,0.00231315,95109.0,95093.0,0.010519]
[1768699739568,0.00231315,95109.0,95093.0,0.01962421]
[1768699740474,0.00231315,95109.0,95094.0,0.00910521]
[1768699741677,0.00231315,95109.0,95093.0,0.00515816]
[1768699742472,0.00231315,95109.0,95091.0,0.09773538]
[1768699742672,0.00231315,95109.0,95092.0,0.010519]
[1768699743282,0.00231315,95109.0,95094.0,0.02842599]
[1768699743481,0.00231315,95109.0,95093.0,0.02842599]
[1768699744282,0.00231315,95109.0,95094.0,0.02842599]
[1768699747989,0.00231315,95109.0,95093.0,0.02842599]
[1768699748374,0.00231315,95109.0,95092.0,0.010519]
[1768699748375,0.00231315,95109.0,95094.0,0.02842599]
[1768699749274,0.00231315,95109.0,95094.0,0.03283464]
[1768699749480,0.00231315,95109.0,95095.0,0.00440865]
[1768699751483,0.01996553,95115.0,95096.0,0.01492748]
[1768699751685,0.11468553,95115.0,95096.0,0.04335347]
[1768699752682,0.010516,95118.0,95098.0,0.01492748]
[1768699752978,0.105237,95116.0,95099.0,0.00440848]
[1768699753686,0.11647064,95116.0,95099.0,0.00440848]
[1768699754183,0.11647064,95116.0,95098.0,0.010519]
[1768699758084,0.02175064,95116.0,95098.0,0.010519]
[1768699758288,0.11647064,95116.0,95098.0,0.010519]
[1768699758885,0.12598462,95116.0,95098.0,0.010519]
[1768699759487,0.11546762,95116.0,95098.0,0.010519]
[1768699759783,0.11546762,95116.0,95097.0,0.02842599]
[1768699762784,0.11546762,95116.0,95098.0,0.02842599]
[1768699763590,0.11546762,95116.0,95098.0,0.02840581]
[1768699764085,0.11546762,95116.0,95097.0,0.02840581]
[1768699764287,0.00956382,95115.0,95097.0,0.02840581]
[1768699764588,0.00956382,95115.0,95097.0,0.03892481]
[1768699766286,0.02008082,95115.0,95097.0,0.02840581]
[1768699767087,0.09116971,95116.0,95098.0,0.010519]
[1768699767287,0.09442531,95146.0,95098.0,0.010519]
[1768699767288,0.10428382,95120.0,95101.0,0.00438102]
[1768699768293,0.11521816,95120.0,95101.0,0.00438102]
[1768699768791,0.010516,95119.0,95101.0,0.03278683]
[1768699769683,0.11521816,95120.0,95101.0,0.03278683]
[1768699769992,0.11521816,95120.0,95102.0,0.010518]
[1768699771393,0.12573416,95120.0,95102.0,0.010518]
[1768699772798,0.010517,95117.0,95101.0,0.00438102]
[1768699773097,0.11521816,95120.0,95101.0,0.00438102]
[1768699773098,0.010516,95119.0,95101.0,0.00438102]
[1768699773394,0.02007982,95119.0,95099.0,0.010519]
[1768699773789,0.02007982,95119.0,95101.0,0.010518]
[1768699773989,0.00956382,95119.0,95101.0,0.010518]
[1768699776598,0.00956382,95119.0,95103.0,0.010518]
[1768699777480,0.00956382,95119.0,95099.0,0.00434609]
[1768699777685,0.01093434,95120.0,95102.0,0.00434609]
[1768699777897,0.09116971,95121.0,95102.0,0.00434609]
[1768699778597,0.010516,95122.0,95104.0,0.0043473]
[1768699778996,0.0201938,95122.0,95102.0,0.09654814]
[1768699779300,0.0096778,95121.0,95102.0,0.09654814]
[1768699779488,0.010516,95120.0,95102.0,0.09654814]
[1768699780305,0.02158401,95120.0,95102.0,0.09654814]
[1768699780496,0.01106801,95120.0,95102.0,0.09654814]
[1768699780697,0.0096778,95121.0,95102.0,0.09654814]
[1768699780895,0.09465976,95122.0,95103.0,0.00443413]
[1768699781201,0.01089194,95122.0,95109.0,0.010517]
[1768699781393,0.00231277,95124.0,95109.0,0.010517]
[1768699781989,0.01315769,95124.0,95108.0,0.09472]
[1768699783400,0.01315769,95124.0,95110.0,0.11048276]
[1768699783593,0.02367369,95124.0,95110.0,0.11048276]
[1768699784196,0.01315769,95124.0,95110.0,0.11048276]
[1768699788702,0.00231277,95124.0,95111.0,0.00453232]
[1768699790606,0.00231277,95124.0,95110.0,0.11496194]
[1768699790811,0.00231277,95124.0,95111.0,0.00447918]
[1768699796322,0.00231277,95124.0,95110.0,0.11048276]
[1768699796722,0.010516,95123.0,95111.0,0.09472]
[1768699796921,0.00231277,95124.0,95111.0,0.09472]
[1768699798420,0.00231277,95124.0,95112.0,0.00441279]
[1768699800222,0.00231277,95124.0,95112.0,0.01492979]
[1768699800419,0.09698165,95135.0,95114.0,0.1151494]
[1768699800626,0.09698165,95135.0,95120.0,0.11048276]
[1768699802120,0.010515,95134.0,95120.0,0.11048276]
[1768699802426,0.02133408,95134.0,95120.0,0.11048276]
[1768699802621,0.01081908,95134.0,95120.0,0.11048276]
[1768699802821,0.10749665,95135.0,95120.0,0.11048276]
[1768699804824,0.010515,95131.0,95120.0,0.11048276]
[1768699805024,0.010515,95129.0,95114.0,0.02840581]
[1768699805223,0.010515,95129.0,95113.0,0.02840581]
[1768699805625,0.01964395,95131.0,95113.0,0.02840581]
[1768699807020,0.010516,95127.0,95113.0,0.02840581]
[1768699808327,0.01964495,95127.0,95113.0,0.02840581]
[1768699808529,0.00912895,95126.0,95114.0,0.09472]
[1768699809125,0.010515,95127.0,95114.0,0.09472]
[1768699810730,0.01964395,95130.0,95114.0,0.09472]
[1768699812426,0.1166256,95133.0,95114.0,0.09472]
[1768699813224,0.1166256,95133.0,95114.0,0.12312581]
[1768699813938,0.010515,95131.0,95114.0,0.12312581]
[1768699815640,0.010515,95129.0,95114.0,0.12312581]
[1768699817141,0.010515,95129.0,95115.0,0.02840581]
[1768699819245,0.1166256,95133.0,95115.0,0.02840581]
[1768699820547,0.010515,95130.0,95115.0,0.02840581]
[1768699821147,0.010515,95130.0,95116.0,0.02840581]
[1768699823346,0.010515,95130.0,95114.0,0.09472]
[1768699823548,0.010515,95130.0,95114.0,0.07077398]
[1768699823747,0.010515,95130.0,95114.0,0.07625309]
[1768699824248,0.010515,95130.0,95115.0,0.00550332]
[1768699826451,0.010515,95130.0,95113.0,0.09472]
[1768699826641,0.02012112,95128.0,95110.0,0.11048276]
[1768699826843,0.02012112,95128.0,95111.0,0.09472]
[1768699827240,0.01112741,95134.0,95118.0,0.11048276]
[1768699827445,0.010514,95136.0,95118.0,0.11048276]
[1768699827645,0.11484012,95139.0,95119.0,0.00550373]
[1768699827841,0.12581446,95139.0,95119.0,0.00550373]
[1768699828040,0.00960612,95138.0,95119.0,0.00550373]
[1768699828440,0.00960612,95137.0,95118.0,0.11048276]
[1768699830152,0.02012012,95137.0,95117.0,0.010516]
[1768699830449,0.02012012,95137.0,95120.0,0.11048276]
[1768699831551,0.02012012,95137.0,95120.0,0.08653681]
[1768699834253,0.00960612,95137.0,95120.0,0.08653681]
[1768699834550,0.010514,95136.0,95120.0,0.08653681]
[1768699835450,0.00960612,95137.0,95120.0,0.08653681]
[1768699836646,0.09392053,95138.0,95120.0,0.09233268]
[1768699836954,0.01097434,95139.0,95123.0,0.00579587]
[1768699837144,0.09472,95142.0,95123.0,0.00579587]
[1768699837544,0.00944313,95141.0,95122.0,0.09640597]
[1768699837946,0.010515,95135.0,95122.0,0.09640597]
[1768699838453,0.010515,95133.0,95122.0,0.09640597]
[1768699839653,0.010515,95131.0,95122.0,0.09640597]
[1768699840754,0.010515,95131.0,95120.0,0.08653681]
[1768699840953,0.010515,95129.0,95120.0,0.08653681]
[1768699841355,0.010515,95129.0,95119.0,0.00579587]
[1768699841655,0.010515,95129.0,95119.0,0.11627863]
[1768699843554,0.010515,95132.0,95120.0,0.00598198]
[1768699843755,0.010515,95130.0,95120.0,0.00598198]
[1768699848763,0.010515,95130.0,95117.0,0.19706732]
[1768699848965,0.010515,95128.0,95118.0,0.00594135]
[1768699851966,0.010515,95131.0,95118.0,0.03434716]
[1768699852173,0.010515,95131.0,95118.0,0.00594135]
[1768699854371,0.010515,95134.0,95120.0,0.00590784]
[1768699854576,0.010515,95132.0,95121.0,0.00590784]
[1768699856678,0.010515,95130.0,95121.0,0.00590784]
[1768699857378,0.010515,95130.0,95120.0,0.09760655]
[1768699857580,0.00995073,95137.0,95118.0,0.00590831]
[1768699857776,0.010516,95123.0,95117.0,0.09472]
[1768699858572,0.010516,95126.0,95117.0,0.09472]
[1768699859981,0.010516,95124.0,95117.0,0.09472]
[1768699860278,0.010516,95124.0,95114.0,0.00526292]
[1768699860480,0.010515,95127.0,95114.0,0.00526292]
[1768699860683,0.010515,95127.0,95115.0,0.09472]
[1768699861385,0.010515,95127.0,95114.0,0.00526292]
[1768699861583,0.010515,95127.0,95115.0,0.09472]
[1768699861779,0.010515,95127.0,95114.0,0.00526292]
[1768699861979,0.010516,95125.0,95115.0,0.09472]
[1768699862375,0.00995073,95133.0,95115.0,0.09472]
[1768699862376,0.010516,95123.0,95115.0,0.09472]
[1768699862576,0.10262405,95131.0,95112.0,8.1e-07]
[1768699862791,0.0125241,95139.0,95110.0,0.09472]
[1768699862792,0.010516,95120.0,95110.0,0.09472]
[1768699865286,0.010516,95123.0,95110.0,0.09472]
[1768699873593,0.010516,95122.0,95110.0,0.09472]
[1768699873990,0.00995073,95128.0,95110.0,0.09472]
[1768699875294,0.010516,95121.0,95110.0,0.09472]
[1768699878395,0.010516,95124.0,95110.0,0.09472]
[1768699880794,0.010516,95124.0,95109.0,0.0076828]
[1768699883394,0.010516,95124.0,95109.0,0.04558576]
[1768699883599,0.010516,95122.0,95109.0,0.0076828]
[1768699884097,0.010516,95122.0,95109.0,0.04558576]
[1768699884498,0.010516,95122.0,95109.0,0.0076828]
[1768699888505,0.010516,95125.0,95109.0,0.0076828]
[1768699897604,0.00995073,95128.0,95109.0,0.0076828]
[1768699899011,0.010515,95127.0,95109.0,0.0076828]
[1768699899311,0.010515,95127.0,95110.0,0.00549588]
[1768699900111,0.010516,95125.0,95110.0,0.00549588]
[1768699901005,0.010516,95125.0,95109.0,0.00231315]
[1768699901911,0.09472,95135.0,95116.0,0.00553229]
[1768699902212,0.09472,95139.0,95119.0,0.00553229]
[1768699903004,0.09472,95139.0,95123.0,0.010516]
[1768699903614,0.09472,95139.0,95119.0,0.00553229]
[1768699903615,0.10447371,95139.0,95122.0,0.010516]
[1768699903815,0.10447371,95139.0,95120.0,0.010516]
[1768699904013,0.10447371,95139.0,95120.0,0.0170277]
[1768699904510,0.00975371,95139.0,95120.0,0.0065117]
[1768699904710,0.09472,95138.0,95122.0,0.010516]
[1768699905618,0.09472,95138.0,95124.0,0.010516]
[1768699906701,0.09472,95137.0,95123.0,0.0066675]
[1768699906914,0.10561333,95142.0,95126.0,0.010515]
[1768699907214,0.09472,95141.0,95126.0,0.010515]
[1768699907415,0.09472,95141.0,95130.0,0.11044387]
[1768699907605,0.09472,95141.0,95123.0,0.0066675]
[1768699907606,0.09472,95141.0,95123.0,0.0171835]
[1768699907910,0.09468,95140.0,95130.0,0.11044387]
[1768699908111,0.010514,95142.0,95130.0,0.11044387]
[1768699908308,0.09468,95141.0,95129.0,0.00666908]
[1768699908707,0.09468,95141.0,95125.0,0.00666908]
[1768699909216,0.010514,95142.0,95130.0,0.11044387]
[1768699909411,0.09468,95141.0,95125.0,0.00666908]
[1768699909621,0.010514,95142.0,95125.0,0.00666908]
[1768699909821,0.09468,95140.0,95125.0,0.00666908]
[1768699911318,0.09468,95140.0,95123.0,0.010516]
[1768699913521,0.010514,95142.0,95123.0,0.010516]
[1768699913706,0.09468,95141.0,95130.0,0.11044387]
[1768699914310,0.10381962,95141.0,95130.0,0.11044387]
[1768699915020,0.10381962,95141.0,95122.0,0.0954241]
[1768699916027,0.10381962,95141.0,95122.0,0.1059401]
[1768699917323,0.10381962,95141.0,95124.0,0.010516]
[1768699917818,0.00913962,95141.0,95124.0,0.010516]
[1768699918023,0.09468,95140.0,95124.0,0.010516]
[1768699918324,0.09468,95140.0,95130.0,0.11044387]
[1768699923128,0.00231228,95144.0,95130.0,0.11044387]
[1768699923335,0.09468,95143.0,95130.0,0.11044387]
[1768699924332,0.00231228,95144.0,95133.0,0.11044387]
[1768699924628,0.09468,95148.0,95133.0,0.12095887]
[1768699924832,0.09468,95148.0,95138.0,0.11044387]
[1768699925033,0.00231218,95149.0,95138.0,0.11044387]